fUST/lending_fUST_20240721
["ID","MTS","AMOUNT","RATE_DAILY","PERIOD"]
[332779479,1721517058825,-500.0,0.00014246,2]
[332779480,1721517058835,-500.0,0.00014246,2]
[332779481,1721517058846,-500.0,0.00014246,2]
[332779482,1721517058856,-2007.06,0.00014246,2]
[332779483,1721517058870,-357.26199055,0.00014246,2]
[332779484,1721517058881,-500.0,0.00014246,2]
[332779485,1721517058891,-177.09484028,0.00014246,2]
[332779486,1721517058900,-500.0,0.00014246,2]
[332779487,1721517058914,-534.53,0.00014246,2]
[332779488,1721517058924,-500.0,0.00014246,2]
[332779489,1721517058934,-500.0,0.00014246,2]
[332779490,1721517058943,-589.05,0.00014246,2]
[332779491,1721517058956,-500.0,0.00014246,2]
[332779492,1721517058966,-1877.38,0.00014246,2]
[332779493,1721517058976,-660.68,0.00014246,2]
[332779494,1721517058986,-500.0,0.00014246,2]
[332779495,1721517058996,-500.0,0.00014246,2]
[332779496,1721517059007,-1812.18,0.00014246,2]
[332779497,1721517059017,-500.0,0.00014246,2]
[332779498,1721517059027,-1203.6,0.00014246,2]
[332779499,1721517059038,-500.0,0.00014246,2]
[332779500,1721517059049,-3429.36,0.00014246,2]
[332779501,1721517059059,-586.79,0.00014246,2]
[332779502,1721517059069,-1555.07,0.00014246,2]
[332779503,1721517059079,-500.0,0.00014246,2]
[332779504,1721517059088,-1711.32,0.00014246,2]
[332779505,1721517059098,-500.0,0.00014246,2]
[332779506,1721517059108,-500.0,0.00014246,2]
[332779507,1721517059118,-295.29927215,0.00014246,2]
[332779508,1721517059127,-500.0,0.00014246,2]
[332779509,1721517059137,-500.0,0.00014246,2]
[332779510,1721517059146,-500.0,0.00014246,2]
[332779511,1721517059157,-500.0,0.00014246,2]
[332779512,1721517059167,-2300.07,0.00014246,2]
[332779513,1721517059180,-500.0,0.00014246,2]
[332779514,1721517059192,-500.0,0.00014246,2]
[332779515,1721517059202,-500.0,0.00014246,2]
[332779516,1721517059212,-803.42,0.00014246,2]
[332779517,1721517059224,-1975.93,0.00014246,2]
[332779518,1721517059235,-849.12,0.00014246,2]
[332779519,1721517059246,-500.0,0.00014246,2]
[332779520,1721517059256,-500.0,0.00014246,2]
[332779521,1721517059265,-500.0,0.00014246,2]
[332779522,1721517059276,-504.88,0.00014246,2]
[332779523,1721517059286,-577.81,0.00014246,2]
[332779524,1721517059296,-500.0,0.00014246,2]
[332779525,1721517059306,-1173.32,0.00014246,2]
[332779526,1721517059316,-999.23,0.00014246,2]
[332779527,1721517059326,-753.04,0.00014246,2]
[332779528,1721517059336,-1371.07,0.00014246,2]
[332779529,1721517059346,-500.0,0.00014246,2]
[332779530,1721517059356,-500.0,0.00014246,2]
[332779531,1721517059366,-503.55041733,0.00014246,2]
[332779532,1721517059376,-4058.99,0.00014246,2]
[332779533,1721517059385,-1304.29,0.00014246,2]
[332779534,1721517059395,-500.0,0.00014246,2]
[332779535,1721517059405,-2255.54,0.00014246,2]
[332779536,1721517059415,-2574.25,0.00014246,2]
[332779537,1721517059424,-1042.84,0.00014246,2]
[332779538,1721517059434,-660.14,0.00014246,2]
[332779539,1721517059444,-655.0,0.00014246,2]
[332779540,1721517059454,-653.69,0.00014246,2]
[332779541,1721517059464,-500.0,0.00014246,2]
[332779542,1721517059474,-500.0,0.00014246,2]
[332779543,1721517059483,-500.0,0.00014246,2]
[332779544,1721517059493,-500.0,0.00014246,2]
[332779545,1721517059503,-1939.64,0.00014246,2]
[332779546,1721517059513,-4215.35,0.00014246,2]
[332779547,1721517059522,-5656.32,0.00014246,2]
[332779548,1721517059534,-500.0,0.00014246,2]
[332779549,1721517059545,-963.83,0.00014246,2]
[332779550,1721517059558,-2167.56,0.00014246,2]
[332779551,1721517059569,-1037.15,0.00014246,2]
[332779552,1721517059578,-500.0,0.00014246,2]
[332779553,1721517059588,-1255.31,0.00014246,2]
[332779554,1721517059599,-3202.39,0.00014246,2]
[332779555,1721517059609,-1116.47,0.00014246,2]
[332779556,1721517059620,-219.41559619,0.00014246,2]
[332779557,1721517059630,-1901.207662,0.00014246,2]
[332779558,1721517059640,-500.0,0.00014246,2]
[332779559,1721517059649,-500.0,0.00014246,2]
[332779560,1721517059659,-2260.92,0.00014246,2]
[332779561,1721517059669,-500.0,0.00014246,2]
[332779562,1721517059679,-1901.207653,0.00014246,2]
[332779563,1721517059688,-500.0,0.00014246,2]
[332779564,1721517059698,-500.0,0.00014246,2]
[332779565,1721517059710,-510.58623771,0.00014246,2]
[332779566,1721517059720,-570.53,0.00014246,2]
[332779567,1721517059730,-500.0,0.00014246,2]
[332779568,1721517059740,-513.96833287,0.00014246,2]
[332779569,1721517059750,-705.92,0.00014246,2]
[332779570,1721517059760,-500.0,0.00014246,2]
[332779571,1721517059769,-740.17,0.00014246,2]
[332779572,1721517059780,-608.44,0.00014246,2]
[332779573,1721517059791,-511.02301535,0.00014246,2]
[332779574,1721517059802,-500.0,0.00014246,2]
[332779575,1721517059813,-1036.03,0.00014246,2]
[332779576,1721517059824,-571.92256385,0.00014246,2]
[332779577,1721517059835,-654.97,0.00014246,2]
[332779578,1721517059847,-500.0,0.00014246,2]
[332779579,1721517059859,-500.0,0.00014246,2]
[332779580,1721517059872,-738.23,0.00014246,2]
[332779581,1721517059884,-500.0,0.00014246,2]
[332779582,1721517059895,-845.78,0.00014246,2]
[332779583,1721517059905,-617.48,0.00014246,2]
[332779584,1721517059915,-500.0,0.00014246,2]
[332779585,1721517059924,-2195.11,0.00014246,2]
[332779586,1721517059934,-500.0,0.00014246,2]
[332779587,1721517059944,-500.0,0.00014246,2]
[332779588,1721517059954,-500.0,0.00014246,2]
[332779589,1721517059964,-1523.58,0.00014246,2]
[332779590,1721517059975,-8731.33,0.00014246,2]
[332779591,1721517059986,-1659.8,0.00014246,2]
[332779592,1721517059998,-500.0,0.00014246,2]
[332779593,1721517060009,-500.0,0.00014246,2]
[332779594,1721517060021,-500.0,0.00014246,2]
[332779595,1721517060031,-500.0,0.00014246,2]
[332779596,1721517060042,-521.4783236,0.00014246,2]
[332779597,1721517060052,-500.0,0.00014246,2]
[332779598,1721517060063,-1067.01,0.00014246,2]
[332779599,1721517060073,-2691.83,0.00014246,2]
[332779600,1721517060084,-654.38,0.00014246,2]
[332779601,1721517060094,-353.74643827,0.00014246,2]
[332779602,1721517060104,-858.74,0.00014246,2]
[332779603,1721517060114,-510.1985245,0.00014246,2]
[332779604,1721517060124,-500.0,0.00014246,2]
[332779605,1721517060134,-1402.8344,0.00014246,2]
[332779606,1721517060144,-910.55,0.00014246,2]
[332779607,1721517060154,-500.0,0.00014246,2]
[332779608,1721517060164,-2959.08,0.00014246,2]
[332779609,1721517060174,-500.0,0.00014246,2]
[332779610,1721517060184,-1402.834404,0.00014246,2]
[332779611,1721517060194,-500.0,0.00014246,2]
[332779612,1721517060204,-500.0,0.00014246,2]
[332779613,1721517060214,-652.92,0.00014246,2]
[332779614,1721517060224,-500.0,0.00014246,2]
[332779615,1721517060234,-500.0,0.00014246,2]
[332779616,1721517060244,-16858.36,0.00014246,2]
[332779617,1721517060254,-500.0,0.00014246,2]
[332779618,1721517060265,-2307.77,0.00014246,2]
[332779619,1721517060275,-500.0,0.00014246,2]
[332779620,1721517060288,-500.0,0.00014246,2]
[332779621,1721517060298,-3665.51,0.00014246,2]
[332779622,1721517060308,-907.91,0.00014246,2]
[332779623,1721517060318,-555.28,0.00014246,2]
[332779624,1721517060327,-500.0,0.00014246,2]
[332779625,1721517060337,-1794.25,0.00014246,2]
[332779626,1721517060347,-836.33,0.00014246,2]
[332779627,1721517060358,-223.886275,0.00014246,2]
[332779628,1721517060367,-1029.32,0.00014246,2]
[332779629,1721517060377,-500.0,0.00014246,2]
[332779630,1721517060388,-7401.26,0.00014246,2]
[332779631,1721517060399,-2795.92,0.00014246,2]
[332779632,1721517060599,-223.886278,0.00014246,2]
[332779633,1721517060609,-500.0,0.00014246,2]
[332779634,1721517060619,-500.0,0.00014246,2]
[332779635,1721517060629,-500.0,0.00014246,2]
[332779636,1721517060638,-2044.79,0.00014246,2]
[332779637,1721517060648,-523.63,0.00014246,2]
[332779638,1721517060658,-500.0,0.00014246,2]
[332779639,1721517060668,-1213.09,0.00014246,2]
[332779640,1721517060677,-500.0,0.00014246,2]
[332779641,1721517060687,-2605.92,0.00014246,2]
[332779642,1721517060697,-594.76,0.00014246,2]
[332779643,1721517060706,-4790.27,0.00014246,2]
[332779644,1721517060715,-553.54,0.00014246,2]
[332779645,1721517060725,-500.0,0.00014246,2]
[332779646,1721517060737,-797.72,0.00014246,2]
[332779647,1721517060747,-500.0,0.00014246,2]
[332779648,1721517060758,-10729.85,0.00014246,2]
[332779649,1721517060768,-1017.95,0.00014246,2]
[332779650,1721517060779,-500.0,0.00014246,2]
[332779651,1721517060788,-4419.49,0.00014246,2]
[332779652,1721517060797,-619.2,0.00014246,2]
[332779653,1721517060806,-500.0,0.00014246,2]
[332779654,1721517060815,-500.0,0.00014246,2]
[332779655,1721517060826,-564.97,0.00014246,2]
[332779656,1721517060837,-500.0,0.00014246,2]
[332779657,1721517060846,-600.01472195,0.00014246,2]
[332779658,1721517060855,-500.0,0.00014246,2]
[332779659,1721517060866,-500.0,0.00014246,2]
[332779660,1721517060880,-2501.31,0.00014246,2]
[332779661,1721517060890,-500.0,0.00014246,2]
[332779662,1721517060899,-946.75,0.00014246,2]
[332779663,1721517060911,-500.0,0.00014246,2]
[332779664,1721517060920,-500.0,0.00014246,2]
[332779665,1721517060930,-2855.27,0.00014246,2]
[332779666,1721517060941,-500.0,0.00014246,2]
[332779667,1721517060955,-500.0,0.00014246,2]
[332779668,1721517060965,-1115.34,0.00014246,2]
[332779669,1721517060976,-500.0,0.00014246,2]
[332779670,1721517060986,-1320.11,0.00014246,2]
[332779671,1721517060995,-500.0,0.00014246,2]
[332779672,1721517061004,-560.67,0.00014246,2]
[332779673,1721517061014,-1885.9,0.00014246,2]
[332779674,1721517061023,-500.0,0.00014246,2]
[332779675,1721517061034,-500.0,0.00014246,2]
[332779676,1721517061044,-1045.11,0.00014246,2]
[332779677,1721517061054,-383.27512815,0.00014246,2]
[332779678,1721517061064,-2570.14,0.00014246,2]
[332779679,1721517061073,-500.0,0.00014246,2]
[332779680,1721517061083,-500.0,0.00014246,2]
[332779681,1721517061092,-500.0,0.00014246,2]
[332779682,1721517061102,-500.0,0.00014246,2]
[332779683,1721517061111,-2905.48,0.00014246,2]
[332779684,1721517061122,-500.0,0.00014246,2]
[332779685,1721517061131,-505.70540248,0.00014246,2]
[332779686,1721517061141,-1128.85,0.00014246,2]
[332779687,1721517061150,-500.0,0.00014246,2]
[332779688,1721517061159,-1902.53,0.00014246,2]
[332779689,1721517061170,-500.0,0.00014246,2]
[332779690,1721517061179,-500.0,0.00014246,2]
[332779691,1721517061189,-2809.91,0.00014246,2]
[332779692,1721517061198,-500.0,0.00014246,2]
[332779693,1721517061208,-500.0,0.00014246,2]
[332779694,1721517061218,-1041.22,0.00014246,2]
[332779695,1721517061228,-2317.96,0.00014246,2]
[332779696,1721517061238,-500.0,0.00014246,2]
[332779697,1721517061247,-500.0,0.00014246,2]
[332779698,1721517061256,-500.74,0.00014246,2]
[332779699,1721517061266,-500.0,0.00014246,2]
[332779700,1721517061275,-500.0,0.00014246,2]
[332779701,1721517061286,-500.0,0.00014246,2]
[332779702,1721517061295,-1307.06,0.00014246,2]
[332779703,1721517061304,-1096.14,0.00014246,2]
[332779704,1721517061313,-1454.0,0.00014246,2]
[332779705,1721517061323,-500.0,0.00014246,2]
[332779706,1721517061332,-500.0,0.00014246,2]
[332779707,1721517061342,-500.0,0.00014246,2]
[332779708,1721517061351,-29094.81,0.00014246,2]
[332779709,1721517061360,-13179.09,0.00014246,2]
[332779710,1721517061370,-898.05,0.00014246,2]
[332779711,1721517061379,-500.0,0.00014246,2]
[332779712,1721517061389,-500.0,0.00014246,2]
[332779713,1721517061398,-500.0,0.00014246,2]
[332779714,1721517061407,-500.0,0.00014246,2]
[332779715,1721517061416,-1349.61,0.00014246,2]
[332779716,1721517061426,-500.0,0.00014246,2]
[332779717,1721517061435,-500.0,0.00014246,2]
[332779718,1721517061445,-500.0,0.00014246,2]
[332779719,1721517061456,-2317.76722699,0.00014246,2]
[332779720,1721517062071,-280.25423796,0.00013598,2]
[332779721,1721517062466,-723.27563167,0.00013598,2]
[332779722,1721517062478,-526.08072875,0.00013598,2]
[332779723,1721517062491,-470.38940162,0.00013598,2]
[332779724,1721517062502,-397.96428247,0.00013698,2]
[332779725,1721517062516,-102.03571753,0.00013698,2]
[332779726,1721517062526,-500.0,0.00013698,2]
[332779727,1721517062537,-500.0,0.00013698,2]
[332779728,1721517062547,-500.0,0.00013698,2]
[332779729,1721517062557,-500.0,0.00013698,2]
[332779730,1721517062566,-510.37104917,0.00013698,2]
[332779731,1721517062578,-500.0,0.00013698,2]
[332779732,1721517062587,-500.0,0.00013698,2]
[332779733,1721517062597,-500.0,0.00013972,2]
[332779734,1721517062609,-500.0,0.00013972,2]
[332779735,1721517062619,-500.0,0.00013972,2]
[332779736,1721517062630,-9.93277301,0.00014246,2]
[332779737,1721517062641,-500.0,0.00014246,2]
[332779738,1721517062651,-7478.493754,0.00014246,2]
[332779739,1721517195743,3000.0,0.000225,30]
[332779743,1721517793062,3000.0,0.000225,30]
[332779745,1721518060600,391.80627157,9.999e-05,2]
[332779805,1721518231794,-329.18,0.00010959,2]
[332779807,1721518231804,-500.61107229,0.00012119,2]
[332779809,1721518231814,-1628.34155116,0.0001212,2]
[332779811,1721518231825,-300.0,0.00012196,2]
[332779813,1721518231834,-300.0,0.00012196,2]
[332779815,1721518231844,-4689.38515152,0.00012197,2]
[332779818,1721518231858,-2868.52466684,0.00012197,2]
[332779921,1721518237903,-1178.79318715,0.00012197,2]
[332779922,1721518237914,-545.95719881,0.00012197,2]
[332779923,1721518237961,-15294.21807691,0.00012197,2]
[332779924,1721518237974,-323.12171877,0.00012197,2]
[332779925,1721518237984,-159.626466,0.0001242,2]
[332779926,1721518237993,-87407.88453593,0.00012436,2]
[332779927,1721518238003,-159.626466,0.00012549,2]
[332779928,1721518238011,-159.626466,0.00012679,2]
[332779929,1721518238021,-159.626466,0.00012808,2]
[332779930,1721518238030,-4285.00752466,0.000129,2]
[332779931,1721518238039,-159.626466,0.00012938,2]
[332779932,1721518238049,-159.626466,0.00013067,2]
[332779933,1721518238058,-4285.00752465,0.00013207,2]
[332779934,1721518238067,-420.0,0.00013416,2]
[332779935,1721518238076,-419.27202533,0.00013588,2]
[332779936,1721518238086,-419.27202533,0.00013591,2]
[332779937,1721518238096,-419.27202533,0.00013593,2]
[332779938,1721518238106,-419.27202533,0.00013596,2]
[332779939,1721518238116,-191.35175279,0.00013597,2]
[332779940,1721518238125,-419.27202533,0.00013598,2]
[332779941,1721518238135,-1133.47453482,0.00013598,2]
[332779942,1721518238144,-186.6451572,0.00013598,2]
[332779943,1721518238153,-354556.530654,0.00013688,2]
[332779944,1721518238163,-500.0,0.00013698,2]
[332779945,1721518238172,-384.02622919,0.00013698,2]
[332779946,1721518238182,-500.0,0.00013698,2]
[332779947,1721518238191,-500.0,0.00013698,2]
[332779948,1721518238200,-500.0,0.00013698,2]
[332779949,1721518238210,-500.0,0.00013698,2]
[332779950,1721518238221,-500.0,0.00013698,2]
[332779951,1721518238230,-500.0,0.00013698,2]
[332779952,1721518238239,-500.0,0.00013698,2]
[332779953,1721518238250,-308.07413622,0.00013698,2]
[332779954,1721518238260,-500.0,0.00013698,2]
[332779955,1721518238269,-500.0,0.00013698,2]
[332779956,1721518238286,-500.0,0.00013698,2]
[332779957,1721518238301,-500.0,0.00013698,2]
[332779958,1721518238311,-500.0,0.00013698,2]
[332779959,1721518238321,-500.0,0.00013698,2]
[332779960,1721518238331,-500.0,0.00013698,2]
[332779961,1721518238340,-500.0,0.00013698,2]
[332779962,1721518238351,-500.0,0.00013698,2]
[332779963,1721518238361,-259.44649424,0.00013698,2]
[332779964,1721518238373,-500.0,0.00013698,2]
[332779965,1721518238383,-524.73135772,0.00013698,2]
[332779966,1721518238393,-500.0,0.00013698,2]
[332779967,1721518238403,-458.17298887,0.00013698,2]
[332779968,1721518238412,-500.0,0.00013698,2]
[332779969,1721518238423,-443.47787937,0.00013698,2]
[332779970,1721518238432,-500.0,0.00013698,2]
[332779971,1721518238444,-500.0,0.00013698,2]
[332779972,1721518238454,-387.59381529,0.00013698,2]
[332779973,1721518238464,-500.0,0.00013698,2]
[332779974,1721518238475,-502.06952761,0.00013698,2]
[332779975,1721518238485,-500.0,0.00013698,2]
[332779976,1721518238495,-500.0,0.00013698,2]
[332779977,1721518238505,-535.33170948,0.00013698,2]
[332779978,1721518238514,-500.0,0.00013698,2]
[332779979,1721518238524,-500.0,0.00013698,2]
[332779980,1721518238535,-500.0,0.00013698,2]
[332779981,1721518238547,-500.0,0.00013698,2]
[332779982,1721518238557,-508.09294628,0.00013698,2]
[332779983,1721518238568,-500.0,0.00013698,2]
[332779984,1721518238578,-619.62184223,0.00013698,2]
[332779985,1721518238588,-500.0,0.00013698,2]
[332779986,1721518238598,-500.0,0.00013698,2]
[332779987,1721518238608,-500.0,0.00013698,2]
[332779988,1721518238618,-500.0,0.00013698,2]
[332779989,1721518238628,-500.0,0.00013698,2]
[332779990,1721518238637,-500.0,0.00013698,2]
[332779991,1721518238647,-500.0,0.00013698,2]
[332779992,1721518238658,-500.0,0.00013698,2]
[332779993,1721518238669,-548.2092026,0.00013698,2]
[332779994,1721518238679,-526.7545616,0.00013698,2]
[332779995,1721518238689,-348.77204299,0.00013698,2]
[332779996,1721518238699,-500.0,0.00013698,2]
[332779997,1721518238710,-387.79553029,0.00013698,2]
[332779998,1721518238721,-875.74,0.00013698,2]
[332779999,1721518238731,-509.05096793,0.00013698,2]
[332780000,1721518238742,-501.77387035,0.00013698,2]
[332780001,1721518238753,-500.0,0.00013698,2]
[332780002,1721518238763,-935.02,0.00013698,2]
[332780003,1721518238773,-500.0,0.00013698,2]
[332780004,1721518238783,-500.0,0.00013698,2]
[332780005,1721518238795,-500.0,0.00013698,2]
[332780006,1721518238805,-500.0,0.00013698,2]
[332780007,1721518238815,-787.98,0.00013698,2]
[332780008,1721518238825,-500.0,0.00013698,2]
[332780009,1721518238834,-1041.82,0.00013698,2]
[332780010,1721518238844,-775.48,0.00013698,2]
[332780011,1721518238855,-500.0,0.00013698,2]
[332780012,1721518238868,-500.0,0.00013698,2]
[332780013,1721518238877,-500.0,0.00013698,2]
[332780014,1721518238887,-500.0,0.00013698,2]
[332780015,1721518238898,-500.0,0.00013698,2]
[332780016,1721518238909,-500.0,0.00013698,2]
[332780017,1721518238919,-500.0,0.00013698,2]
[332780018,1721518238932,-500.0,0.00013698,2]
[332780019,1721518238942,-500.0,0.00013698,2]
[332780020,1721518238952,-597.78,0.00013698,2]
[332780021,1721518238964,-500.0,0.00013698,2]
[332780022,1721518238973,-500.0,0.00013698,2]
[332780023,1721518238983,-500.0,0.00013698,2]
[332780024,1721518238993,-615.43055674,0.00013698,2]
[332780025,1721518239003,-503.08189526,0.00013698,2]
[332780026,1721518239013,-500.0,0.00013698,2]
[332780027,1721518239025,-500.0,0.00013698,2]
[332780028,1721518239034,-500.0,0.00013698,2]
[332780029,1721518239045,-501.9546659,0.00013698,2]
[332780030,1721518239055,-545.29737027,0.00013698,2]
[332780031,1721518239064,-500.0,0.00013698,2]
[332780032,1721518239075,-500.0,0.00013698,2]
[332780033,1721518239085,-500.0,0.00013698,2]
[332780034,1721518239096,-500.0,0.00013698,2]
[332780035,1721518239106,-683.35,0.00013698,2]
[332780036,1721518239122,-518.49437446,0.00013698,2]
[332780037,1721518239133,-500.0,0.00013698,2]
[332780038,1721518239143,-500.0,0.00013698,2]
[332780039,1721518239155,-500.0,0.00013698,2]
[332780040,1721518239167,-500.0,0.00013698,2]
[332780041,1721518239178,-500.0,0.00013698,2]
[332780042,1721518239187,-500.0,0.00013698,2]
[332780043,1721518239199,-500.0,0.00013698,2]
[332780044,1721518239208,-500.0,0.00013698,2]
[332780045,1721518239218,-500.0,0.00013698,2]
[332780046,1721518239228,-313.35768215,0.00013698,2]
[332780047,1721518239237,-500.0,0.00013698,2]
[332780048,1721518239247,-500.0,0.00013698,2]
[332780049,1721518239257,-1106.5,0.00013698,2]
[332780050,1721518239267,-500.0,0.00013698,2]
[332780051,1721518239276,-500.0,0.00013698,2]
[332780052,1721518239286,-500.0,0.00013698,2]
[332780053,1721518239297,-926.64,0.00013698,2]
[332780054,1721518239307,-500.0,0.00013698,2]
[332780055,1721518239318,-500.0,0.00013698,2]
[332780056,1721518239331,-500.0,0.00013698,2]
[332780057,1721518239343,-500.0,0.00013698,2]
[332780058,1721518239354,-500.0,0.00013698,2]
[332780059,1721518239367,-500.0,0.00013698,2]
[332780060,1721518239378,-500.0,0.00013698,2]
[332780061,1721518239388,-500.0,0.00013698,2]
[332780062,1721518239398,-506.24968583,0.00013698,2]
[332780063,1721518239409,-500.0,0.00013698,2]
[332780064,1721518239419,-500.0,0.00013698,2]
[332780065,1721518239429,-500.0,0.00013698,2]
[332780066,1721518239440,-571.29,0.00013698,2]
[332780067,1721518239450,-500.0,0.00013698,2]
[332780069,1721518239460,-500.0,0.00013698,2]
[332780071,1721518239470,-500.0,0.00013698,2]
[332780072,1721518239481,-500.0,0.00013698,2]
[332780073,1721518239492,-500.0,0.00013698,2]
[332780074,1721518239504,-500.0,0.00013698,2]
[332780075,1721518239514,-500.0,0.00013698,2]
[332780076,1721518239523,-628.6,0.00013698,2]
[332780077,1721518239533,-500.0,0.00013698,2]
[332780078,1721518239542,-500.0,0.00013698,2]
[332780079,1721518239553,-500.0,0.00013698,2]
[332780080,1721518239564,-601.4404759,0.00013698,2]
[332780081,1721518239574,-501.3438523,0.00013698,2]
[332780082,1721518239585,-500.0,0.00013698,2]
[332780083,1721518239595,-500.0,0.00013698,2]
[332780084,1721518239606,-500.0,0.00013698,2]
[332780085,1721518239616,-500.0,0.00013698,2]
[332780086,1721518239625,-400.0,0.00013698,2]
[332780087,1721518239636,-500.0,0.00013698,2]
[332780088,1721518239646,-500.0,0.00013698,2]
[332780089,1721518239657,-500.0,0.00013698,2]
[332780090,1721518239667,-500.0,0.00013698,2]
[332780091,1721518239678,-552.51580868,0.00013698,2]
[332780092,1721518239689,-500.0,0.00013698,2]
[332780093,1721518239699,-502.96509409,0.00013698,2]
[332780094,1721518239711,-500.0,0.00013698,2]
[332780095,1721518239721,-504.50131564,0.00013698,2]
[332780096,1721518239731,-500.0,0.00013698,2]
[332780098,1721518239742,-500.0,0.00013698,2]
[332780099,1721518239753,-500.0,0.00013698,2]
[332780100,1721518239763,-500.0,0.00013698,2]
[332780101,1721518239772,-500.0,0.00013698,2]
[332780102,1721518239782,-500.0,0.00013698,2]
[332780103,1721518239792,-500.0,0.00013698,2]
[332780105,1721518239802,-500.0,0.00013698,2]
[332780106,1721518239812,-500.0,0.00013698,2]
[332780107,1721518239823,-500.0,0.00013698,2]
[332780108,1721518239833,-500.0,0.00013698,2]
[332780109,1721518239843,-500.0,0.00013698,2]
[332780110,1721518239853,-500.0,0.00013698,2]
[332780111,1721518239863,-523.63,0.00013698,2]
[332780113,1721518239873,-150.0,0.00013698,2]
[332780115,1721518239883,-500.0,0.00013698,2]
[332780116,1721518240166,-500.0,0.00013698,2]
[332780117,1721518240176,-500.0,0.00013698,2]
[332780118,1721518240186,-500.0,0.00013698,2]
[332780119,1721518240196,-500.0,0.00013698,2]
[332780120,1721518240205,-500.0,0.00013698,2]
[332780121,1721518240215,-500.0,0.00013698,2]
[332780122,1721518240225,-500.0,0.00013698,2]
[332780123,1721518240235,-500.0,0.00013698,2]
[332780124,1721518240244,-276.89937302,0.00013698,2]
[332780125,1721518240254,-500.0,0.00013698,2]
[332780126,1721518240264,-500.0,0.00013698,2]
[332780127,1721518240273,-801.96,0.00013698,2]
[332780128,1721518240283,-500.0,0.00013698,2]
[332780129,1721518240293,-484.1569262,0.00013698,2]
[332780130,1721518240302,-500.0,0.00013698,2]
[332780131,1721518240312,-500.0,0.00013698,2]
[332780132,1721518240322,-191.2377236,0.00013698,2]
[332780133,1721518240331,-1559.97,0.00013698,2]
[332780134,1721518240341,-500.0,0.00013698,2]
[332780135,1721518240350,-1115.34,0.00013698,2]
[332780136,1721518240372,-500.0,0.00013698,2]
[332780137,1721518240382,-1096.14,0.00013698,2]
[332780138,1721518240392,-500.0,0.00013698,2]
[332780139,1721518240403,-500.0,0.00013698,2]
[332780140,1721518240413,-500.0,0.00013698,2]
[332780141,1721518240423,-500.0,0.00013698,2]
[332780142,1721518240433,-500.0,0.00013698,2]
[332780143,1721518240444,-500.0,0.00013698,2]
[332780144,1721518240455,-500.0,0.00013698,2]
[332780145,1721518240465,-635.03105591,0.00013698,2]
[332780146,1721518240475,-628.81656615,0.00013698,2]
[332780147,1721518240486,-500.0,0.00013698,2]
[332780148,1721518240496,-513.30695711,0.00013698,2]
[332780149,1721518240506,-512.07655604,0.00013698,2]
[332780150,1721518240517,-500.0,0.00013698,2]
[332780151,1721518240528,-898.05,0.00013698,2]
[332780152,1721518240537,-500.0,0.00013698,2]
[332780153,1721518240547,-638.53,0.00013698,2]
[332780154,1721518240557,-500.0,0.00013698,2]
[332780155,1721518240567,-500.0,0.00013698,2]
[332780156,1721518240576,-500.0,0.00013698,2]